[Event "Late-Titled-Tuesday-Blitz-September-26-2023"]
[Site "Chess.com"]
[Date "2023.09.26"]
[Round "1"]
[White "Bauman_Guy"]
[Black "KamlaPasand"]
[Result "1-0"]
[WhiteElo "2863"]
[BlackElo "2457"]
[TimeControl "180+1"]
[EndTime "14:02:02 PDT"]
[Termination "Bauman_Guy won by resignation"]

1. e4 {[%clk 0:03:00.9]} 1... e5 {[%clk 0:02:59.9]} 2. Nf3 {[%clk 0:03:01.2]}
2... Nc6 {[%clk 0:02:59.7]} 3. Bb5 {[%clk 0:03:01.9]} 3... a6 {[%clk 0:03:00.1]}
4. Ba4 {[%clk 0:03:02]} 4... Nf6 {[%clk 0:03:00.7]} 5. O-O {[%clk 0:03:02.4]}
5... b5 {[%clk 0:03:00.9]} 6. Bb3 {[%clk 0:03:02.4]} 6... Bc5 {[%clk 0:03:01.8]}
7. d3 {[%clk 0:03:02.7]} 7... d6 {[%clk 0:03:01.8]} 8. a4 {[%clk 0:03:03.1]}
8... b4 {[%clk 0:03:01.4]} 9. a5 {[%clk 0:03:02.8]} 9... O-O {[%clk 0:03:00.6]}
10. Nbd2 {[%clk 0:03:03.1]} 10... Ne7 {[%clk 0:03:00.1]} 11. Nc4 {[%clk
0:03:02.5]} 11... Ng6 {[%clk 0:03:00.1]} 12. Be3 {[%clk 0:03:02.7]} 12... Bxe3
{[%clk 0:02:59.8]} 13. fxe3 {[%clk 0:03:02.7]} 13... Be6 {[%clk 0:02:57.5]} 14.
Qe1 {[%clk 0:03:02.7]} 14... h6 {[%clk 0:02:56.5]} 15. Qxb4 {[%clk 0:03:02.3]}
15... Rb8 {[%clk 0:02:55.7]} 16. Qe1 {[%clk 0:03:02.1]} 16... Qe7 {[%clk
0:02:50.6]} 17. Nh4 {[%clk 0:02:51.2]} 17... Nxh4 {[%clk 0:02:45.3]} 18. Qxh4
{[%clk 0:02:52.1]} 18... Nd5 {[%clk 0:02:42.9]} 19. Qxe7 {[%clk 0:02:45]} 19...
Nxe7 {[%clk 0:02:43.8]} 20. Nd2 {[%clk 0:02:45.7]} 20... Bxb3 {[%clk 0:02:43.1]}
21. Nxb3 {[%clk 0:02:46.6]} 21... f5 {[%clk 0:02:42.5]} 22. exf5 {[%clk
0:02:38.1]} 22... Nxf5 {[%clk 0:02:43.4]} 23. Rf3 {[%clk 0:02:38.1]} 23... c5
{[%clk 0:02:40.1]} 24. Raf1 {[%clk 0:02:35.5]} 24... h5 {[%clk 0:02:32.5]} 25.
Rxf5 {[%clk 0:02:34.7]} 1-0

[Event "Late-Titled-Tuesday-Blitz-September-26-2023"]
[Site "Chess.com"]
[Date "2023.09.26"]
[Round "1"]
[White "MITerryble"]
[Black "slorovel"]
[Result "1-0"]
[WhiteElo "2930"]
[BlackElo "2468"]
[TimeControl "180+1"]
[EndTime "14:02:26 PDT"]
[Termination "MITerryble won by resignation"]

1. e4 {[%clk 0:03:00.9]} 1... c5 {[%clk 0:02:55.2]} 2. Nf3 {[%clk 0:03:01.2]}
2... d6 {[%clk 0:02:49.3]} 3. Bb5+ {[%clk 0:03:00.8]} 3... Nd7 {[%clk
0:02:47.8]} 4. d4 {[%clk 0:03:00.8]} 4... cxd4 {[%clk 0:02:46.9]} 5. Qxd4 {[%clk
0:03:01.7]} 5... a6 {[%clk 0:02:47]} 6. Bxd7+ {[%clk 0:03:01.7]} 6... Bxd7
{[%clk 0:02:47.9]} 7. Bg5 {[%clk 0:03:02]} 7... h6 {[%clk 0:02:46.5]} 8. Bh4
{[%clk 0:03:02.1]} 8... Nf6 {[%clk 0:02:46.7]} 9. Nc3 {[%clk 0:03:02.2]} 9... e6
{[%clk 0:02:44.3]} 10. O-O-O {[%clk 0:03:01.8]} 10... Be7 {[%clk 0:02:44.6]} 11.
e5 {[%clk 0:03:02.3]} 11... dxe5 {[%clk 0:02:37]} 12. Nxe5 {[%clk 0:03:02.6]}
12... Bc6 {[%clk 0:02:31.3]} 13. Nxc6 {[%clk 0:03:01.4]} 13... bxc6 {[%clk
0:02:31.5]} 14. Bxf6 {[%clk 0:03:02.1]} 14... Bxf6 {[%clk 0:02:28.5]} 15. Qc5
{[%clk 0:03:02.1]} 15... Qc7 {[%clk 0:02:25.3]} 16. Nd5 {[%clk 0:03:02.2]} 16...
exd5 {[%clk 0:02:21.5]} 17. Rhe1+ {[%clk 0:03:01.7]} 17... Be7 {[%clk
0:02:15.3]} 18. Rxe7+ {[%clk 0:03:00.3]} 18... Qxe7 {[%clk 0:02:14]} 19. Qxc6+
{[%clk 0:03:00.8]} 19... Kf8 {[%clk 0:02:05.5]} 20. Qxa8+ {[%clk 0:02:59.5]}
20... Qe8 {[%clk 0:02:06.4]} 21. Qxe8+ {[%clk 0:02:48.4]} 21... Kxe8 {[%clk
0:02:07.3]} 22. Rxd5 {[%clk 0:02:48.7]} 22... Ke7 {[%clk 0:02:03]} 23. Ra5
{[%clk 0:02:49.3]} 23... Ra8 {[%clk 0:01:56.3]} 24. a3 {[%clk 0:02:49.5]} 24...
Kd6 {[%clk 0:01:54.6]} 25. b4 {[%clk 0:02:49.8]} 25... Kc6 {[%clk 0:01:54.9]}
26. b5+ {[%clk 0:02:50.3]} 26... Kb6 {[%clk 0:01:53]} 27. Rxa6+ {[%clk
0:02:50.6]} 27... Rxa6 {[%clk 0:01:53.4]} 28. bxa6 {[%clk 0:02:51.5]} 28... Kxa6
{[%clk 0:01:53.7]} 29. c4 {[%clk 0:02:52.4]} 1-0

[Event "Late-Titled-Tuesday-Blitz-September-26-2023"]
[Site "Chess.com"]
[Date "2023.09.26"]
[Round "1"]
[White "Njal28"]
[Black "brm72"]
[Result "1-0"]
[WhiteElo "3090"]
[BlackElo "2501"]
[TimeControl "180+1"]
[EndTime "14:02:32 PDT"]
[Termination "Njal28 won by resignation"]

1. e4 {[%clk 0:03:00.9]} 1... c6 {[%clk 0:02:57.5]} 2. d4 {[%clk 0:03:01]} 2...
d5 {[%clk 0:02:58.4]} 3. exd5 {[%clk 0:03:01.6]} 3... cxd5 {[%clk 0:02:58.4]} 4.
Nf3 {[%clk 0:03:02.5]} 4... Nc6 {[%clk 0:02:58.1]} 5. c3 {[%clk 0:03:03.4]} 5...
Bg4 {[%clk 0:02:58.6]} 6. h3 {[%clk 0:03:03.5]} 6... Bh5 {[%clk 0:02:58.6]} 7.
Qb3 {[%clk 0:03:03.6]} 7... Qd7 {[%clk 0:02:50.2]} 8. Ne5 {[%clk 0:03:03.9]}
8... Nxe5 {[%clk 0:02:46.3]} 9. dxe5 {[%clk 0:03:04.8]} 9... a6 {[%clk
0:02:46.8]} 10. c4 {[%clk 0:03:05.1]} 10... dxc4 {[%clk 0:02:36]} 11. Bxc4
{[%clk 0:03:06]} 11... e6 {[%clk 0:02:34.8]} 12. O-O {[%clk 0:03:06.1]} 12...
Bc5 {[%clk 0:02:33.5]} 13. Nc3 {[%clk 0:03:00.4]} 13... Ne7 {[%clk 0:02:28.1]}
14. Ne4 {[%clk 0:03:00.6]} 14... Rc8 {[%clk 0:02:17]} 15. Be3 {[%clk 0:03:01.1]}
15... Bxe3 {[%clk 0:02:06.2]} 16. Nd6+ {[%clk 0:03:01.4]} 16... Kf8 {[%clk
0:02:02.6]} 17. Nxc8 {[%clk 0:03:02]} 17... Bc5 {[%clk 0:01:51.3]} 18. Nxe7
{[%clk 0:03:01.7]} 18... Qxe7 {[%clk 0:01:52.2]} 19. Rac1 {[%clk 0:02:59.7]}
19... Bg6 {[%clk 0:01:48.2]} 20. Bd3 {[%clk 0:02:59.8]} 20... Bxd3 {[%clk
0:01:46.6]} 21. Qxd3 {[%clk 0:03:00.7]} 21... g6 {[%clk 0:01:46]} 22. Rxc5
{[%clk 0:02:55.1]} 22... Qxc5 {[%clk 0:01:42.8]} 23. Qd8+ {[%clk 0:02:55.5]}
23... Kg7 {[%clk 0:01:41.2]} 24. Qf6+ {[%clk 0:02:56.4]} 24... Kg8 {[%clk
0:01:36.9]} 25. Rd1 {[%clk 0:02:56.4]} 1-0

[Event "Late-Titled-Tuesday-Blitz-September-26-2023"]
[Site "Chess.com"]
[Date "2023.09.26"]
[Round "1"]
[White "Haykoooo0o"]
[Black "Hrant_ChessMood"]
[Result "0-1"]
[WhiteElo "2465"]
[BlackElo "2910"]
[TimeControl "180+1"]
[EndTime "14:03:16 PDT"]
[Termination "Hrant_ChessMood won by resignation"]

1. d4 {[%clk 0:03:00.9]} 1... Nf6 {[%clk 0:02:59.3]} 2. Nf3 {[%clk 0:03:01.3]}
2... g6 {[%clk 0:02:58.9]} 3. Bf4 {[%clk 0:02:59.5]} 3... Bg7 {[%clk 0:02:58.5]}
4. h3 {[%clk 0:02:59.6]} 4... O-O {[%clk 0:02:58.7]} 5. e3 {[%clk 0:02:59.3]}
5... c5 {[%clk 0:02:58.3]} 6. c3 {[%clk 0:02:59.7]} 6... cxd4 {[%clk 0:02:57.5]}
7. exd4 {[%clk 0:03:00]} 7... d6 {[%clk 0:02:57.9]} 8. Be2 {[%clk 0:03:00.1]}
8... Nc6 {[%clk 0:02:58.2]} 9. O-O {[%clk 0:03:00.1]} 9... Be6 {[%clk
0:02:52.6]} 10. Nbd2 {[%clk 0:02:59.1]} 10... Qb6 {[%clk 0:02:52.3]} 11. Ng5
{[%clk 0:02:59.5]} 11... Qxb2 {[%clk 0:02:45.3]} 12. Nxe6 {[%clk 0:02:58.9]}
12... fxe6 {[%clk 0:02:46.2]} 13. Nc4 {[%clk 0:02:51.8]} 13... Qxc3 {[%clk
0:02:44.1]} 14. Be3 {[%clk 0:02:52.1]} 14... Nd5 {[%clk 0:02:43.2]} 15. Rc1
{[%clk 0:02:49.4]} 15... Nxd4 {[%clk 0:02:15.2]} 16. Rxc3 {[%clk 0:02:20.2]}
16... Nxc3 {[%clk 0:02:16.1]} 17. Qd2 {[%clk 0:02:14.9]} 17... Ncxe2+ {[%clk
0:02:11.9]} 18. Kh2 {[%clk 0:02:03.8]} 18... Rac8 {[%clk 0:02:09.3]} 19. Bxd4
{[%clk 0:02:00.5]} 19... Nxd4 {[%clk 0:02:07.5]} 20. Ne3 {[%clk 0:01:58.8]}
20... d5 {[%clk 0:02:01]} 21. Kg1 {[%clk 0:01:45.9]} 21... Rc6 {[%clk
0:01:58.4]} 22. Rc1 {[%clk 0:01:45.4]} 22... Rxc1+ {[%clk 0:01:56.6]} 23. Qxc1
{[%clk 0:01:46.3]} 23... Ne2+ {[%clk 0:01:56.3]} 0-1

[Event "Late-Titled-Tuesday-Blitz-September-26-2023"]
[Site "Chess.com"]
[Date "2023.09.26"]
[Round "1"]
[White "vova-79"]
[Black "giomar27"]
[Result "1-0"]
[WhiteElo "2602"]
[BlackElo "2281"]
[TimeControl "180+1"]
[EndTime "14:03:16 PDT"]
[Termination "vova-79 won by resignation"]

1. d4 {[%clk 0:03:00.9]} 1... Nf6 {[%clk 0:02:58.4]} 2. c4 {[%clk 0:03:00.4]}
2... c5 {[%clk 0:02:59]} 3. Nf3 {[%clk 0:02:59.8]} 3... cxd4 {[%clk 0:02:58.8]}
4. Nxd4 {[%clk 0:03:00.7]} 4... e5 {[%clk 0:02:59.4]} 5. Nb5 {[%clk 0:03:00.3]}
5... d5 {[%clk 0:02:59.9]} 6. cxd5 {[%clk 0:03:01.2]} 6... Bc5 {[%clk
0:03:00.4]} 7. N5c3 {[%clk 0:03:01.8]} 7... O-O {[%clk 0:03:00.2]} 8. h3 {[%clk
0:03:02.1]} 8... Re8 {[%clk 0:02:53.5]} 9. g4 {[%clk 0:03:01.5]} 9... e4 {[%clk
0:02:53]} 10. Bg2 {[%clk 0:03:01.1]} 10... e3 {[%clk 0:02:47.4]} 11. Bxe3 {[%clk
0:03:00.4]} 11... Bxe3 {[%clk 0:02:47.6]} 12. fxe3 {[%clk 0:03:01.1]} 12... Rxe3
{[%clk 0:02:48.4]} 13. Qd4 {[%clk 0:03:00.7]} 13... Qe8 {[%clk 0:02:44.5]} 14.
Nd2 {[%clk 0:02:50.9]} 14... Nbd7 {[%clk 0:02:33]} 15. Nc4 {[%clk 0:02:49.5]}
15... Re7 {[%clk 0:02:29.3]} 16. O-O {[%clk 0:02:38.9]} 16... Nb6 {[%clk
0:02:22.1]} 17. d6 {[%clk 0:02:33]} 17... Rd7 {[%clk 0:02:21.9]} 18. Nxb6 {[%clk
0:02:20.2]} 18... axb6 {[%clk 0:02:21.8]} 19. Nb5 {[%clk 0:02:20.8]} 19... Ra5
{[%clk 0:02:19.3]} 20. a4 {[%clk 0:02:16.7]} 20... Qe6 {[%clk 0:02:11.4]} 21.
Qxb6 {[%clk 0:01:53.3]} 21... Ra6 {[%clk 0:02:06.9]} 22. Qc5 {[%clk 0:01:50.9]}
22... Rd8 {[%clk 0:02:01.7]} 23. Nc7 {[%clk 0:01:49.4]} 23... Qxd6 {[%clk
0:02:02]} 24. Nxa6 {[%clk 0:01:48]} 24... Qxa6 {[%clk 0:02:01.8]} 1-0

[Event "Late-Titled-Tuesday-Blitz-September-26-2023"]
[Site "Chess.com"]
[Date "2023.09.26"]
[Round "1"]
[White "ritanovikova"]
[Black "2k28Lakers"]
[Result "0-1"]
[WhiteElo "2163"]
[BlackElo "2559"]
[TimeControl "180+1"]
[EndTime "14:03:30 PDT"]
[Termination "2k28Lakers won by resignation"]

1. d4 {[%clk 0:02:59.5]} 1... a6 {[%clk 0:03:00.9]} 2. Bf4 {[%clk 0:02:59.4]}
2... d6 {[%clk 0:02:59.2]} 3. e4 {[%clk 0:02:58.6]} 3... g6 {[%clk 0:02:59.1]}
4. Nf3 {[%clk 0:02:57.7]} 4... Bg7 {[%clk 0:02:59.4]} 5. Qd2 {[%clk 0:02:58.3]}
5... b5 {[%clk 0:02:57.9]} 6. c4 {[%clk 0:02:53.1]} 6... bxc4 {[%clk 0:02:55.9]}
7. Bxc4 {[%clk 0:02:53]} 7... Bb7 {[%clk 0:02:56.8]} 8. Nc3 {[%clk 0:02:52]}
8... e6 {[%clk 0:02:56.3]} 9. O-O {[%clk 0:02:41.9]} 9... Nd7 {[%clk 0:02:56]}
10. Bg5 {[%clk 0:02:39]} 10... Ne7 {[%clk 0:02:53.6]} 11. Bh6 {[%clk 0:02:35.1]}
11... O-O {[%clk 0:02:50.1]} 12. Bxg7 {[%clk 0:02:34.5]} 12... Kxg7 {[%clk
0:02:51]} 13. d5 {[%clk 0:02:31.9]} 13... e5 {[%clk 0:02:50.7]} 14. Ng5 {[%clk
0:02:27.6]} 14... h6 {[%clk 0:02:47.9]} 15. Nh3 {[%clk 0:02:27.6]} 15... g5
{[%clk 0:02:32.2]} 16. f3 {[%clk 0:02:25.6]} 16... f5 {[%clk 0:02:29.4]} 17. Ne2
{[%clk 0:02:23.6]} 17... f4 {[%clk 0:02:26.5]} 18. Nf2 {[%clk 0:02:20.2]} 18...
Nf6 {[%clk 0:02:25.3]} 19. Kh1 {[%clk 0:02:15.3]} 19... Bc8 {[%clk 0:02:23.2]}
20. g3 {[%clk 0:02:09]} 20... Kh7 {[%clk 0:02:19.7]} 21. g4 {[%clk 0:02:07.4]}
21... Ng6 {[%clk 0:02:18]} 22. h3 {[%clk 0:02:02.2]} 22... Nh4 {[%clk
0:02:18.1]} 23. Nd3 {[%clk 0:01:59]} 23... h5 {[%clk 0:02:16.2]} 24. Kg1 {[%clk
0:01:55.2]} 24... hxg4 {[%clk 0:02:09.6]} 25. hxg4 {[%clk 0:01:56.1]} 25... Rh8
{[%clk 0:02:09.6]} 26. Kf2 {[%clk 0:01:56.5]} 26... Bxg4 {[%clk 0:02:07.3]} 27.
fxg4 {[%clk 0:01:50.8]} 27... Nxe4+ {[%clk 0:02:06.8]} 28. Ke1 {[%clk
0:01:50.6]} 28... Nxd2 {[%clk 0:02:07.7]} 0-1

[Event "Late-Titled-Tuesday-Blitz-September-26-2023"]
[Site "Chess.com"]
[Date "2023.09.26"]
[Round "1"]
[White "PNEPaul"]
[Black "The_Straightforward_Rook"]
[Result "0-1"]
[WhiteElo "1935"]
[BlackElo "2513"]
[TimeControl "180+1"]
[EndTime "14:03:33 PDT"]
[Termination "The_Straightforward_Rook won by resignation"]

1. e4 {[%clk 0:02:58.8]} 1... e5 {[%clk 0:02:59.2]} 2. Nf3 {[%clk 0:02:57.7]}
2... Nc6 {[%clk 0:02:58.6]} 3. Bc4 {[%clk 0:02:57.4]} 3... Bc5 {[%clk
0:02:58.3]} 4. b4 {[%clk 0:02:57.3]} 4... Bxb4 {[%clk 0:02:57.4]} 5. c3 {[%clk
0:02:57.5]} 5... Be7 {[%clk 0:02:57.7]} 6. Qb3 {[%clk 0:02:56.4]} 6... Nh6
{[%clk 0:02:54.9]} 7. d4 {[%clk 0:02:55.5]} 7... Na5 {[%clk 0:02:54.8]} 8. Qa4
{[%clk 0:02:55.6]} 8... Nxc4 {[%clk 0:02:54.7]} 9. Qxc4 {[%clk 0:02:55.6]} 9...
exd4 {[%clk 0:02:50.2]} 10. Bxh6 {[%clk 0:02:54.4]} 10... gxh6 {[%clk
0:02:51.1]} 11. cxd4 {[%clk 0:02:54.2]} 11... d6 {[%clk 0:02:43.5]} 12. Nbd2
{[%clk 0:02:50.2]} 12... Be6 {[%clk 0:02:42.2]} 13. Qb5+ {[%clk 0:02:37]} 13...
Qd7 {[%clk 0:02:35.9]} 14. Qxb7 {[%clk 0:02:35.8]} 14... O-O {[%clk 0:02:35.7]}
15. O-O {[%clk 0:02:35.5]} 15... Kh8 {[%clk 0:02:30.3]} 16. Qb2 {[%clk
0:02:33.5]} 16... Rab8 {[%clk 0:02:26.4]} 17. Qc3 {[%clk 0:02:31.5]} 17... Bf6
{[%clk 0:02:25.8]} 18. e5 {[%clk 0:02:30.3]} 18... Bg7 {[%clk 0:02:24]} 19. Ne4
{[%clk 0:02:21.6]} 19... Bd5 {[%clk 0:02:16]} 20. Nf6 {[%clk 0:02:19.4]} 20...
Bxf6 {[%clk 0:02:16.3]} 21. exf6 {[%clk 0:02:18]} 21... Rg8 {[%clk 0:02:16]} 22.
Kh1 {[%clk 0:02:08.4]} 22... Rxg2 {[%clk 0:02:11.6]} 23. Rg1 {[%clk 0:01:47.8]}
23... Qg4 {[%clk 0:01:57.8]} 24. Rxg2 {[%clk 0:01:45]} 24... Bxf3 {[%clk
0:01:57.4]} 25. Rg1 {[%clk 0:01:44.4]} 25... Bxg2+ {[%clk 0:01:50.5]} 26. Rxg2
{[%clk 0:01:42.5]} 26... Rb1+ {[%clk 0:01:50.9]} 0-1

[Event "Late-Titled-Tuesday-Blitz-September-26-2023"]
[Site "Chess.com"]
[Date "2023.09.26"]
[Round "1"]
[White "kleinebeer98"]
[Black "Manukyan_Artak"]
[Result "1-0"]
[WhiteElo "2793"]
[BlackElo "2432"]
[TimeControl "180+1"]
[EndTime "14:04:04 PDT"]
[Termination "kleinebeer98 won by resignation"]

1. e4 {[%clk 0:03:00.9]} 1... c6 {[%clk 0:02:59.9]} 2. d4 {[%clk 0:02:57.7]}
2... d5 {[%clk 0:03:00.8]} 3. f3 {[%clk 0:02:58.5]} 3... e6 {[%clk 0:03:00]} 4.
Nc3 {[%clk 0:02:58.4]} 4... Nf6 {[%clk 0:02:59.6]} 5. e5 {[%clk 0:02:58.2]} 5...
Nfd7 {[%clk 0:02:59.2]} 6. f4 {[%clk 0:02:58.9]} 6... c5 {[%clk 0:02:59.4]} 7.
Nf3 {[%clk 0:02:59.8]} 7... Nc6 {[%clk 0:02:59.5]} 8. Be3 {[%clk 0:02:58.4]}
8... Qb6 {[%clk 0:02:58.7]} 9. Qd2 {[%clk 0:02:58.6]} 9... c4 {[%clk 0:02:53.4]}
10. b3 {[%clk 0:02:53.4]} 10... Bb4 {[%clk 0:02:50.9]} 11. a3 {[%clk 0:02:46.7]}
11... Qa5 {[%clk 0:02:50.5]} 12. axb4 {[%clk 0:02:47.3]} 12... Qxa1+ {[%clk
0:02:49.6]} 13. Kf2 {[%clk 0:02:47.9]} 13... O-O {[%clk 0:02:39.6]} 14. bxc4
{[%clk 0:02:43.6]} 14... dxc4 {[%clk 0:02:39.8]} 15. b5 {[%clk 0:02:42.7]} 15...
Nb4 {[%clk 0:02:35.4]} 16. d5 {[%clk 0:02:35.5]} 16... Nxd5 {[%clk 0:02:31]} 17.
Nxd5 {[%clk 0:02:33.4]} 17... exd5 {[%clk 0:02:31.6]} 18. Bd4 {[%clk 0:02:34.3]}
18... Qa3 {[%clk 0:02:28.5]} 19. f5 {[%clk 0:02:34.7]} 19... Nc5 {[%clk
0:02:24.4]} 20. Qf4 {[%clk 0:02:33.4]} 20... Ne4+ {[%clk 0:02:24.1]} 21. Kg1
{[%clk 0:02:34.1]} 21... f6 {[%clk 0:01:58.7]} 22. e6 {[%clk 0:02:30]} 22... Re8
{[%clk 0:01:55.7]} 23. h4 {[%clk 0:02:26.6]} 23... Qd6 {[%clk 0:01:54.2]} 24.
Qe3 {[%clk 0:02:26.3]} 24... Ng3 {[%clk 0:01:47.2]} 25. Rh3 {[%clk 0:02:26.1]}
25... Nxf1 {[%clk 0:01:46.8]} 26. Kxf1 {[%clk 0:02:27]} 26... Kh8 {[%clk
0:01:45.6]} 27. h5 {[%clk 0:02:26.6]} 27... a5 {[%clk 0:01:34.2]} 28. h6 {[%clk
0:02:25.6]} 28... Qe7 {[%clk 0:01:29.9]} 29. hxg7+ {[%clk 0:02:16]} 29... Qxg7
{[%clk 0:01:29.4]} 30. Rh6 {[%clk 0:02:16.6]} 30... Rf8 {[%clk 0:01:21.1]} 31.
e7 {[%clk 0:02:16.5]} 31... Bxf5 {[%clk 0:01:20.8]} 32. exf8=B {[%clk
0:02:12.8]} 32... Rxf8 {[%clk 0:01:20.3]} 33. Rxf6 {[%clk 0:02:11.1]} 33... Kg8
{[%clk 0:01:14.3]} 34. Rxf5 {[%clk 0:02:09.9]} 1-0

[Event "Late-Titled-Tuesday-Blitz-September-26-2023"]
[Site "Chess.com"]
[Date "2023.09.26"]
[Round "1"]
[White "ChristopherYoo"]
[Black "Giorno"]
[Result "1-0"]
[WhiteElo "3005"]
[BlackElo "2496"]
[TimeControl "180+1"]
[EndTime "14:04:07 PDT"]
[Termination "ChristopherYoo won by checkmate"]

1. d4 {[%clk 0:02:57.9]} 1... d5 {[%clk 0:02:58.4]} 2. Nf3 {[%clk 0:02:55.6]}
2... Nf6 {[%clk 0:02:57.2]} 3. c3 {[%clk 0:02:52.2]} 3... g6 {[%clk 0:02:51.8]}
4. Bf4 {[%clk 0:02:51.3]} 4... Bg7 {[%clk 0:02:51.5]} 5. Nbd2 {[%clk 0:02:50.8]}
5... O-O {[%clk 0:02:51.3]} 6. e3 {[%clk 0:02:50.8]} 6... b6 {[%clk 0:02:47]} 7.
Bd3 {[%clk 0:02:37.5]} 7... Bb7 {[%clk 0:02:46.7]} 8. O-O {[%clk 0:02:37.5]}
8... Nbd7 {[%clk 0:02:45.1]} 9. Qe2 {[%clk 0:02:33]} 9... Nh5 {[%clk 0:02:44.4]}
10. Bg5 {[%clk 0:02:31.9]} 10... h6 {[%clk 0:02:37.8]} 11. Bh4 {[%clk
0:02:31.6]} 11... Nhf6 {[%clk 0:02:36.5]} 12. Rad1 {[%clk 0:02:21.8]} 12... Re8
{[%clk 0:02:32.5]} 13. Ne5 {[%clk 0:02:16.7]} 13... Nf8 {[%clk 0:02:16.8]} 14.
f4 {[%clk 0:02:11.7]} 14... Ne4 {[%clk 0:02:12.8]} 15. Nxe4 {[%clk 0:01:54.3]}
15... dxe4 {[%clk 0:02:12]} 16. Bc4 {[%clk 0:01:54.2]} 16... Bxe5 {[%clk
0:01:45.1]} 17. dxe5 {[%clk 0:01:45]} 17... Qc8 {[%clk 0:01:44.8]} 18. f5 {[%clk
0:01:45.1]} 18... gxf5 {[%clk 0:01:36.1]} 19. Qh5 {[%clk 0:01:42.2]} 19... e6
{[%clk 0:01:24.4]} 20. Qxh6 {[%clk 0:01:41.4]} 20... Nh7 {[%clk 0:01:17.9]} 21.
Bf6 {[%clk 0:01:41.3]} 21... Nxf6 {[%clk 0:01:16.9]} 22. exf6 {[%clk 0:01:42.2]}
22... Bd5 {[%clk 0:01:14]} 23. Qg7# {[%clk 0:01:39.9]} 1-0

[Event "Late-Titled-Tuesday-Blitz-September-26-2023"]
[Site "Chess.com"]
[Date "2023.09.26"]
[Round "1"]
[White "MagnusCarlsen"]
[Black "simplerXiao"]
[Result "1-0"]
[WhiteElo "3280"]
[BlackElo "2506"]
[TimeControl "180+1"]
[EndTime "14:04:52 PDT"]
[Termination "MagnusCarlsen won by resignation"]

1. e4 {[%clk 0:03:00.9]} 1... c5 {[%clk 0:02:59.1]} 2. Qh5 {[%clk 0:03:00.5]}
2... Nf6 {[%clk 0:02:57]} 3. Qxc5 {[%clk 0:03:00.1]} 3... Nxe4 {[%clk
0:02:57.7]} 4. Qe3 {[%clk 0:03:00.6]} 4... Nf6 {[%clk 0:02:57.3]} 5. d4 {[%clk
0:03:00.4]} 5... e6 {[%clk 0:02:57.5]} 6. Nf3 {[%clk 0:02:57.9]} 6... d5 {[%clk
0:02:58.1]} 7. Bd3 {[%clk 0:02:57.3]} 7... Be7 {[%clk 0:02:58.7]} 8. O-O {[%clk
0:02:57.4]} 8... O-O {[%clk 0:02:59.4]} 9. Ne5 {[%clk 0:02:57.5]} 9... Nc6
{[%clk 0:02:59.5]} 10. c3 {[%clk 0:02:56.7]} 10... Nd7 {[%clk 0:02:58.4]} 11. f4
{[%clk 0:02:55.7]} 11... Bf6 {[%clk 0:02:47]} 12. Nd2 {[%clk 0:02:52.6]} 12...
g6 {[%clk 0:02:47.3]} 13. Ndf3 {[%clk 0:02:51.8]} 13... Bg7 {[%clk 0:02:47.6]}
14. g4 {[%clk 0:02:51]} 14... Ndxe5 {[%clk 0:02:44.6]} 15. fxe5 {[%clk
0:02:45.5]} 15... Bd7 {[%clk 0:02:39.3]} 16. g5 {[%clk 0:02:41.8]} 16... Ne7
{[%clk 0:02:26.5]} 17. h4 {[%clk 0:02:40.9]} 17... Nf5 {[%clk 0:02:25.8]} 18.
Qf2 {[%clk 0:02:40.3]} 18... b5 {[%clk 0:02:24.7]} 19. h5 {[%clk 0:02:37.4]}
19... b4 {[%clk 0:02:23.9]} 20. h6 {[%clk 0:02:37.3]} 20... Bh8 {[%clk
0:02:23.6]} 21. cxb4 {[%clk 0:02:36.7]} 21... Qb6 {[%clk 0:02:20.1]} 22. Bd2
{[%clk 0:02:33.2]} 22... Bb5 {[%clk 0:02:17.9]} 23. Bxb5 {[%clk 0:02:33]} 23...
Qxb5 {[%clk 0:02:18.8]} 24. a4 {[%clk 0:02:33.1]} 24... Qb6 {[%clk 0:02:18.2]}
25. Rfc1 {[%clk 0:02:32.5]} 25... Rac8 {[%clk 0:02:18.1]} 26. b5 {[%clk
0:02:17.1]} 26... Rc4 {[%clk 0:02:15.1]} 27. Rxc4 {[%clk 0:02:14.1]} 27... dxc4
{[%clk 0:02:15.3]} 28. Rc1 {[%clk 0:02:13.8]} 28... a6 {[%clk 0:02:09.8]} 29.
Rxc4 {[%clk 0:02:05.7]} 29... axb5 {[%clk 0:02:09.4]} 30. Rb4 {[%clk 0:01:52.4]}
30... Qa7 {[%clk 0:02:02.3]} 31. axb5 {[%clk 0:01:51.5]} 31... Qa1+ {[%clk
0:01:59.3]} 32. Qe1 {[%clk 0:01:50.3]} 32... Qa2 {[%clk 0:01:58.1]} 33. Qe4
{[%clk 0:01:44.8]} 33... Qa1+ {[%clk 0:01:53.9]} 34. Kf2 {[%clk 0:01:43.7]}
34... Qh1 {[%clk 0:01:52.2]} 35. b6 {[%clk 0:01:41.1]} 35... Qh3 {[%clk
0:01:43.9]} 36. Qf4 {[%clk 0:01:31.6]} 36... Qh1 {[%clk 0:01:24.7]} 37. b7
{[%clk 0:01:26.7]} 37... Rb8 {[%clk 0:01:24.6]} 38. Rc4 {[%clk 0:01:23.9]} 38...
Ne7 {[%clk 0:01:22]} 39. Rc7 {[%clk 0:01:23.4]} 39... Kf8 {[%clk 0:01:20.6]} 40.
Bb4 {[%clk 0:01:21.3]} 1-0